{"text_format":"1","workbook":"xlsx","n_sheets":3,"sheets":["Чемпионат","Кубок","Реальные матчи"],"not_rendered":{"charts":0,"images":0,"macros":1,"external_links":0,"defined_names":1,"comments":0,"pivot_tables":0},"unopened":[],"bounds":{"document_bytes":16777216,"sheet_cells":100000,"rows_first":2000,"rows_last":500,"rows_between":2000,"halvings":0,"cell_chars":16384,"cell_head_chars":4096},"cells_cut":0,"cells_raw":0,"read":"whole","date_system":"1900"}

{"sheet":"Чемпионат","index":0,"n_rows":115,"n_cols":18,"rows_kept":115,"cut":false,"hidden":false,"merged":[[0,1,0,17],[1,1,1,17],[22,2,22,4],[22,12,22,14],[20,1,20,17],[98,2,98,4],[98,12,98,14],[115,1,115,17],[3,2,3,4],[3,12,3,14],[39,1,39,17],[41,2,41,4],[41,12,41,14],[58,1,58,17],[60,2,60,4],[96,1,96,17],[60,12,60,14],[77,1,77,17],[79,2,79,4],[79,12,79,14]]}
[null,"7 тур"]
[]
[]
[null,null,"РОСТОВ",null,null,null,null,null,{"$f":"MAX(0,INT((3*F20-MAX((R20-G20),0))/3))","v":0},":",{"$f":"MAX(INT((3*P20-MAX((H20-Q20),0))/3),0)","v":4},null,"МОСКВА"]
[null,1,"В","Спартак","Александр Селихов",null,null,null,null,null,null,1,"В","Зенит","Михаил Кержаков",0,0,4]
[null,2,"З","Зенит","Деян Ловрен",0,1,2,null,null,null,2,"З","Зенит","Вячеслав Караваев",0,1,2]
[null,3,"З","Пари НН","Лукас Масоэро",0,0,0,null,null,null,3,"З","Локомотив","Тин Едвай",0,1,1]
[null,4,"З","Ахмат","Дарко Тодорович",0,0,0,null,null,null,4,"З","Краснодар","Сергей Бородин 1999",0,1,1]
[null,5,"П","Ахмат","Бернард Бериша",0,0,0,null,null,null,5,"П","Краснодар","Эдуард Сперцян",2,2,0]
[null,6,"П","Ахмат","Лечи Садулаев",null,null,null,null,null,null,6,"П","Сочи","Кристиан Нобоа",2,2,0]
[null,7,"П","Зенит","Вендел",0,2,1,null,null,null,7,"П","Оренбург","Джимми Марин",0,0,0]
[null,8,"П","Ахмат","Иван Олейников",0,0,0,null,null,null,8,"П","ЦСКА","Хорхе Карраскаль",0,1,1]
[null,9,null,"Сочи","Амир Батырев",null,null,null,null,null,null,9,"П","Ахмат","Евгений Харин",0,0,0]
[null,10,"Ф","Краснодар","Джон Кордоба",1,2,0,null,null,null,10,"П","Ахмат","Антон Швец",0,0,0]
[null,11,"Ф","Факел","Георгий Гонгадзе",0,0,0,null,null,null,11,"Ф","Крылья Советов","Дмитрий Цыпченко",0,2,0]
[null,12,"Ф","Химки","Кемаль Адеми",null,null,null,null,null,null,12,"В","Оренбург","Евгений Гошев"]
[null,13,"З","Оренбург","Александр Павловец",null,null,null,null,null,null,13,"П","Спартак","Наиль Умяров"]
[null,14,"З","Химки","Брайан Идову",null,null,null,null,null,null,14,"З","Спартак","Мачей Рыбус"]
[null,15,"П","Химки","Илья Кухарчук",null,null,null,null,null,null,15,"П","ЦСКА","Максим Мухин"]
[null,null,null,null,null,{"$f":"SUM(F5:F19)","v":1},{"$f":"SUM(G5:G19)","v":5},{"$f":"SUM(H5:H19)","v":3},null,null,null,null,null,null,null,{"$f":"SUM(P5:P19)","v":4},{"$f":"SUM(Q5:Q19)","v":10},{"$f":"SUM(R5:R19)","v":9}]
[]
[]
[null,null,"ДИНАМО М.",null,null,null,null,null,{"$f":"MAX(0,INT((3*F39-MAX((R39-G39),0))/3))","v":1},":",{"$f":"MAX(INT((3*P39-MAX((H39-Q39),0))/3),0)","v":2},null,"СПАРТАК М."]
[null,1,"В","Динамо","Антон Шунин",0,0,0,null,null,null,1,"В","Ахмат","Михаил Опарин",0,0,0]
[null,2,"З","Краснодар","Кайо Панталеао",0,1,1,null,null,null,2,"З","Краснодар","Кристиан Рамирес",0,1,1]
[null,3,"З","Динамо","Сергей Паршивлюк",0,0,0,null,null,null,3,"З","Локомотив","Максим Ненахов"]
[null,4,"З","Сочи","Артем Мещанинов",0,1,1,null,null,null,4,"З","Спартак","Никита Чернов",0,1,1]
[null,5,"П","Локомотив","Даниил Куликов",0,2,0,null,null,null,5,"З","Локомотив","Станислав Магкеев",0,1,1]
[null,6,"П","ЦСКА","Бактиер Зайнутдинов",0,1,1,null,null,null,6,"П","Химки","Кирилл Боженов"]
[null,7,"П","Спартак","Роман Зобнин",1,2,0,null,null,null,7,"П","Сочи","Артур Юсупов",0,2,0]
[null,8,"П","Зенит","Алексей Сутормин",null,null,null,null,null,null,8,"П","Урал","Игорь Коновалов"]
[null,9,"П","Динамо","Вячеслав Грулев",0,1,0,null,null,null,9,"П","Химки","Резиуан Мирзов",0,0,0]
[null,10,"Ф","Локомотив","Вильзон Изидор",null,null,null,null,null,null,10,"П","Зенит","Малком",2,2,1]
[null,11,"Ф","Динамо","Федор Смолов",null,null,null,null,null,null,11,"Ф","Спартак","Шамар Николсон"]
[null,12,"З","Ахмат","Марат Быстров",null,null,null,null,null,null,12,"В","Ростов","Сергей Песьяков"]
[null,13,"Ф","Факел","Максим Максимов",0,0,0,null,null,null,13,"З","Крылья Советов","Георгий Зотов",0,1,1]
[null,14,"П","Сочи","Жоаозиньо",0,2,0,null,null,null,14,"П","Пари НН","Мамаду Майга",0,1,0]
[null,15,"В","Динамо","Игорь Лещук",null,null,null,null,null,null,15,"П","Оренбург","Иван Башич"]
[null,null,null,null,null,{"$f":"SUM(F24:F38)","v":1},{"$f":"SUM(G24:G38)","v":10},{"$f":"SUM(H24:H38)","v":3},null,null,null,null,null,null,null,{"$f":"SUM(P24:P38)","v":2},{"$f":"SUM(Q24:Q38)","v":9},{"$f":"SUM(R24:R38)","v":5}]
[]
[]
[null,null,"ШИННИК",null,null,null,null,null,{"$f":"MAX(0,INT((3*F58-MAX((R58-G58),0))/3))","v":4},":",{"$f":"MAX(INT((3*P58-MAX((H58-Q58),0))/3),0)","v":4},null,"СИБИРЬ"]
[null,1,"В","Пари НН","Никита Гойло",0,0,0,null,null,null,1,"В","Краснодар","Матвей Сафонов",0,0,2]
[null,2,"З","Локомотив","Марк Мампасси",null,null,null,null,null,null,2,"З","ЦСКА","Игорь Дивеев",0,0,2]
[null,3,"З","Сочи","Игорь Юрганов",0,1,1,null,null,null,3,"З","Зенит","Дуглас Сантос",0,1,2]
[null,4,"З","Сочи","Артем Макарчук",0,1,1,null,null,null,4,"З","Краснодар","Вячеслав Литвинов",0,1,1]
[null,5,"П","Динамо","Захарян Арсен",0,1,0,null,null,null,5,"З","Ахмат","Зоран Нижич",0,0,0]
[null,6,"П","Ростов","Даниил Уткин",0,1,1,null,null,null,6,"П","ЦСКА","Иван Обляков",0,1,1]
[null,7,"П","Крылья Советов","Максим Глушенков",0,2,0,null,null,null,7,"П","Динамо","Даниил Фомин",1,1,0]
[null,8,"П","Зенит","Андрей Мостовой",1,2,1,null,null,null,8,"П","Ростов","Данил Глебов",0,1,1]
[null,9,"Ф","Ахмат","Мохамед Конате",1,0,0,null,null,null,9,"П","Ахмат","Артем Тимофеев",0,0,0]
[null,10,"Ф","Динамо","Константин Тюкавин",1,1,0,null,null,null,10,"Ф","Спартак","Александр Соболев",0,2,0]
[null,11,"Ф","Сочи","Владислав Сарвели",1,2,0,null,null,null,11,"Ф","Локомотив","Иван Игнатьев",3,2,0]
[null,12,"П","Спартак","Михаил Игнатов",null,null,null,null,null,null,12,"В","Химки","Илья Лантратов"]
[null,13,"З","Динамо","Саба Сазонов",0,0,0,null,null,null,13,"З","Крылья Советов","Роман Евгеньев"]
[null,14,"П","Зенит","Александр Ерохин",null,null,null,null,null,null,14,"П","Крылья Советов","Данил Липовой"]
[null,15,"Ф","Динамо","Ярослав Гладышев",null,null,null,null,null,null,15,"Ф","Урал","Алексей Каштанов"]
[null,null,null,null,null,{"$f":"SUM(F43:F57)","v":4},{"$f":"SUM(G43:G57)","v":11},{"$f":"SUM(H43:H57)","v":4},null,null,null,null,null,null,null,{"$f":"SUM(P43:P57)","v":4},{"$f":"SUM(Q43:Q57)","v":9},{"$f":"SUM(R43:R57)","v":9}]
[]
[]
[null,null,"РОТОР",null,null,null,null,null,{"$f":"MAX(0,INT((3*F77-MAX((R77-G77),0))/3))","v":1},":",{"$f":"MAX(INT((3*P77-MAX((H77-Q77),0))/3),0)","v":2},null,"ВИТЯЗЬ"]
[null,1,"В","Локомотив","Гильерме",null,null,null,null,null,null,1,"В","Зенит","Даниил Одоевский"]
[null,2,"З","Локомотив","Дмитрий Живоглядов",0,1,1,null,null,null,2,"З","Сочи","Ванья Дркушич",0,1,1]
[null,3,"З","Ахмат","Юрий Журавлев",0,0,0,null,null,null,3,"З","Локомотив","Наяир Тикнизян",0,1,1]
[null,4,"З","Сочи","Сергей Терехов",0,1,1,null,null,null,4,"З","Спартак","Николай Рассказов",0,1,1]
[null,5,"П","Крылья Советов","Роман Ежов",1,2,0,null,null,null,5,"П","Зенит","Зелимхан Бакаев",0,2,1]
[null,6,"П","Ахмат","Александр Трошечкин",0,0,0,null,null,null,6,"П","Локомотив","Антон Миранчук",1,2,0]
[null,7,"П","Химки","Денис Глушаков",0,0,0,null,null,null,7,"П","Зенит","Далер Кузяев",0,2,1]
[null,8,"П","Краснодар","Алексей Ионов",0,2,0,null,null,null,8,"П","Пари НН","Николай Калинский",1,1,0]
[null,9,"П","Краснодар","Александр Черников",0,2,0,null,null,null,9,"П","Локомотив","Артем Карпукас",0,2,0]
[null,10,"Ф","Ахмат","Владимир Ильин",0,0,0,null,null,null,10,"Ф","Пари НН","Вячеслав Кротов",0,1,0]
[null,11,"Ф","Пари НН","Тимур Сулейманов",0,1,0,null,null,null,11,"Ф","Локомотив","Марко Раконяц",0,2,0]
[null,12,"В","Рубин","Никита Медведев",null,null,null,null,null,null,12,"В","Ахмат","Гиорги Шелия"]
[null,13,"П","Ростов","Хорен Байрамян",null,null,null,null,null,null,13,"З","Торпедо","Илья Кутепов"]
[null,14,"П","Локомотив","Сергей Бабкин",null,null,null,null,null,null,14,"З","Пари НН","Никита Каккоев"]
[null,15,"Ф","Торпедо","Давид Караев",null,null,null,null,null,null,15,"П","Сочи","Кирилл Ушатов"]
[null,null,null,null,null,{"$f":"SUM(F62:F76)","v":1},{"$f":"SUM(G62:G76)","v":9},{"$f":"SUM(H62:H76)","v":2},null,null,null,null,null,null,null,{"$f":"SUM(P62:P76)","v":2},{"$f":"SUM(Q62:Q76)","v":15},{"$f":"SUM(R62:R76)","v":5}]
[]
[]
[null,null,"КРЫЛЬЯ СОВЕТОВ",null,null,null,null,null,{"$f":"MAX(0,INT((3*F96-MAX((R96-G96),0))/3))","v":1},":",{"$f":"MAX(INT((3*P96-MAX((H96-Q96),0))/3),0)","v":1},null,"ЛОКОМОТИВ"]
[null,1,"В","Сочи","Денис Адамов",0,0,2,null,null,null,1,"В","Локомотив","Даниил Худяков",0,0,2]
[null,2,"З","Зенит","Данил Круговой",0,1,2,null,null,null,2,"З","Зенит","Родригао",1,1,2]
[null,3,"З","Динамо","Дмитрий Скопинцев",0,0,0,null,null,null,3,"З","Зенит","Нуралы Алип"]
[null,4,"З","Краснодар","Сергей Волков 2002",null,null,null,null,null,null,4,"З","ЦСКА","Кирилл Набабкин",0,0,2]
[null,5,"П","Зенит","Иван Сергеев",0,2,1,null,null,null,5,"П","Сочи","Кирилл Кравцов",0,2,0]
[null,6,"П","Спартак","Антон Зиньковский",0,2,0,null,null,null,6,"П","Сочи","Никита Бурмистров",0,2,0]
[null,7,"П","Динамо","Денис Макаров",0,1,0,null,null,null,7,"П","Локомотив","Константин Марадишвили",0,2,0]
[null,8,"П","Краснодар","Никита Кривцов",0,2,0,null,null,null,8,"П","Локомотив","Франсуа Камано",0,2,0]
[null,9,"П","Сочи","Георгий Мелкадзе",1,2,0,null,null,null,9,"П","Краснодар","Олакунле Олусегун",0,2,0]
[null,10,"П","Спартак","Даниил Хлусевич",0,2,0,null,null,null,10,"П","ЦСКА","Хесус Медина",0,1,1]
[null,11,"Ф","Торпедо","Амур Калмыков",null,null,null,null,null,null,11,"Ф","ЦСКА","Федор Чалов",0,0,0]
[null,12,"В","Крылья Советов","Иван Ломаев",null,null,null,null,null,null,12,"З","Ростов","Максим Осипенко",0,0,2]
[null,13,"З","Крылья Советов","Юрий Горшков",0,1,1,null,null,null,13,"П","Динамо","Лука Гагнидзе"]
[null,14,"П","Крылья Советов","Александр Коваленко",null,null,null,null,null,null,14,"П","Урал","Юрий Газинский"]
[null,15,"П","Динамо","Даниил Лесовой",null,null,null,null,null,null,15,"Ф","ЦСКА","Адольфо Гайч"]
[null,null,null,null,null,{"$f":"SUM(F81:F95)","v":1},{"$f":"SUM(G81:G95)","v":13},{"$f":"SUM(H81:H95)","v":6},null,null,null,null,null,null,null,{"$f":"SUM(P81:P95)","v":1},{"$f":"SUM(Q81:Q95)","v":12},{"$f":"SUM(R81:R95)","v":9}]
[]
[]
[null,null,"ЦСКА",null,null,null,null,null,{"$f":"MAX(0,INT((3*F115-MAX((R115-G115),0))/3))","v":2},":",{"$f":"MAX(INT((3*P115-MAX((H115-Q115),0))/3),0)","v":0},null,"КРАСНОДАР"]
[null,1,"В","ЦСКА","Игорь Акинфеев",0,0,4,null,null,null,1,"В","Урал","Илья Помазун",0,0,0]
[null,2,"З","Зенит","Арсен Адамов",null,null,null,null,null,null,2,"З","ЦСКА","Милан Гайич",0,0,2]
[null,3,"З","Зенит","Дмитрий Чистяков",null,null,null,null,null,null,3,"З","Ростов","Виктор Мелёхин"]
[null,4,"З","Ахмат","Ризван Уциев",0,0,0,null,null,null,4,"З","Спартак","Георгий Джикия",0,1,1]
[null,5,"П","Ростов","Роман Тугарев",null,null,null,null,null,null,5,"З","Крылья Советов","Александр Солдатенков",0,1,1]
[null,6,"П","Зенит","Вильмар Барриос",0,2,1,null,null,null,6,"П","Спартак","Квинси Промес",1,2,0]
[null,7,"П","Зенит","Густаво Мантуан",0,2,1,null,null,null,7,"П","Химки","Александр Руденко",0,0,0]
[null,8,"П","Ростов","Дмитрий Полоз",0,1,1,null,null,null,8,"П","Крылья Советов","Владислав Шитов"]
[null,9,"П","Локомотив","Джирано Керк",1,2,0,null,null,null,9,"Ф","Ростов","Николай Комличенко",0,0,0]
[null,10,"П","Спартак","Даниил Денисов",1,2,0,null,null,null,10,"Ф","Ахмат","Gamid Agalarov"]
[null,11,"Ф","ЦСКА","Антон Заболотный",null,null,null,null,null,null,11,"Ф","Зенит","Матео Кассьерра",0,2,1]
[null,12,"З","Краснодар","Сергей Петров",null,null,null,null,null,null,12,"З","Сочи","Ибрагим Цаллагов"]
[null,13,"П","Урал","Эрик Бикфалви",0,0,0,null,null,null,13,"З","Ахмат","Мирослав Богосовац",0,0,0]
[null,14,"П","Краснодар","Ираклий Манелов",null,null,null,null,null,null,14,"П","Ростов","Кирилл Щетинин",0,1,1]
[null,15,"З","Сочи","Тимофей Маргасов",0,1,1,null,null,null,15,"П","Спартак","Кристофер Мартинс Перейера"]
[null,null,null,null,null,{"$f":"SUM(F100:F114)","v":2},{"$f":"SUM(G100:G114)","v":10},{"$f":"SUM(H100:H114)","v":8},null,null,null,null,null,null,null,{"$f":"SUM(P100:P114)","v":1},{"$f":"SUM(Q100:Q114)","v":7},{"$f":"SUM(R100:R114)","v":6}]

{"sheet":"Кубок","index":1,"n_rows":115,"n_cols":18,"rows_kept":115,"cut":false,"hidden":false,"merged":[[22,2,22,4],[22,12,22,14],[0,1,0,17],[1,1,1,17],[3,2,3,4],[3,12,3,14],[20,1,20,17],[39,1,39,17],[41,2,41,4],[41,12,41,14],[58,1,58,17],[60,2,60,4],[60,12,60,14],[98,2,98,4],[98,12,98,14],[115,1,115,17],[77,1,77,17],[79,2,79,4],[79,12,79,14],[96,1,96,17]]}
[]
[]
[]
[null,null,null,null,null,null,null,null,{"$f":"MAX(0,INT((3*F20-MAX((R20-G20),0))/3))","v":0},":",{"$f":"MAX(INT((3*P20-MAX((H20-Q20),0))/3),0)","v":0}]
[null,1,null,null,null,null,null,null,null,null,null,1]
[null,2,null,null,null,null,null,null,null,null,null,2]
[null,3,null,null,null,null,null,null,null,null,null,3]
[null,4,null,null,null,null,null,null,null,null,null,4]
[null,5,null,null,null,null,null,null,null,null,null,5]
[null,6,null,null,null,null,null,null,null,null,null,6]
[null,7,null,null,null,null,null,null,null,null,null,7]
[null,8,null,null,null,null,null,null,null,null,null,8]
[null,9,null,null,null,null,null,null,null,null,null,9]
[null,10,null,null,null,null,null,null,null,null,null,10]
[null,11,null,null,null,null,null,null,null,null,null,11]
[null,12,null,null,null,null,null,null,null,null,null,12]
[null,13,null,null,null,null,null,null,null,null,null,13]
[null,14,null,null,null,null,null,null,null,null,null,14]
[null,15,null,null,null,null,null,null,null,null,null,15]
[null,null,null,null,null,{"$f":"SUM(F5:F19)","v":0},{"$f":"SUM(G5:G19)","v":0},{"$f":"SUM(H5:H19)","v":0},null,null,null,null,null,null,null,{"$f":"SUM(P5:P19)","v":0},{"$f":"SUM(Q5:Q19)","v":0},{"$f":"SUM(R5:R19)","v":0}]
[]
[]
[null,null,null,null,null,null,null,null,{"$f":"MAX(0,INT((3*F39-MAX((R39-G39),0))/3))","v":0},":",{"$f":"MAX(INT((3*P39-MAX((H39-Q39),0))/3),0)","v":0}]
[]
[]
[]
[]
[]
[]
[]
[]
[]
[]
[]
[]
[]
[]
[]
[null,null,null,null,null,{"$f":"SUM(F24:F38)","v":0},{"$f":"SUM(G24:G38)","v":0},{"$f":"SUM(H24:H38)","v":0},null,null,null,null,null,null,null,{"$f":"SUM(P24:P38)","v":0},{"$f":"SUM(Q24:Q38)","v":0},{"$f":"SUM(R24:R38)","v":0}]
[]
[]
[null,null,null,null,null,null,null,null,{"$f":"MAX(0,INT((3*F58-MAX((R58-G58),0))/3))","v":0},":",{"$f":"MAX(INT((3*P58-MAX((H58-Q58),0))/3),0)","v":0}]
[null,1,null,null,null,null,null,null,null,null,null,1]
[null,2,null,null,null,null,null,null,null,null,null,2]
[null,3,null,null,null,null,null,null,null,null,null,3]
[null,4,null,null,null,null,null,null,null,null,null,4]
[null,5,null,null,null,null,null,null,null,null,null,5]
[null,6,null,null,null,null,null,null,null,null,null,6]
[null,7,null,null,null,null,null,null,null,null,null,7]
[null,8,null,null,null,null,null,null,null,null,null,8]
[null,9,null,null,null,null,null,null,null,null,null,9]
[null,10,null,null,null,null,null,null,null,null,null,10]
[null,11,null,null,null,null,null,null,null,null,null,11]
[null,12,null,null,null,null,null,null,null,null,null,12]
[null,13,null,null,null,null,null,null,null,null,null,13]
[null,14,null,null,null,null,null,null,null,null,null,14]
[null,15,null,null,null,null,null,null,null,null,null,15]
[null,null,null,null,null,{"$f":"SUM(F43:F57)","v":0},{"$f":"SUM(G43:G57)","v":0},{"$f":"SUM(H43:H57)","v":0},null,null,null,null,null,null,null,{"$f":"SUM(P43:P57)","v":0},{"$f":"SUM(Q43:Q57)","v":0},{"$f":"SUM(R43:R57)","v":0}]
[]
[]
[null,null,null,null,null,null,null,null,{"$f":"MAX(0,INT((3*F77-MAX((R77-G77),0))/3))","v":0},":",{"$f":"MAX(INT((3*P77-MAX((H77-Q77),0))/3),0)","v":0}]
[null,1,null,null,null,null,null,null,null,null,null,1]
[null,2,null,null,null,null,null,null,null,null,null,2]
[null,3,null,null,null,null,null,null,null,null,null,3]
[null,4,null,null,null,null,null,null,null,null,null,4]
[null,5,null,null,null,null,null,null,null,null,null,5]
[null,6,null,null,null,null,null,null,null,null,null,6]
[null,7,null,null,null,null,null,null,null,null,null,7]
[null,8,null,null,null,null,null,null,null,null,null,8]
[null,9,null,null,null,null,null,null,null,null,null,9]
[null,10,null,null,null,null,null,null,null,null,null,10]
[null,11,null,null,null,null,null,null,null,null,null,11]
[null,12,null,null,null,null,null,null,null,null,null,12]
[null,13,null,null,null,null,null,null,null,null,null,13]
[null,14,null,null,null,null,null,null,null,null,null,14]
[null,15,null,null,null,null,null,null,null,null,null,15]
[null,null,null,null,null,{"$f":"SUM(F62:F76)","v":0},{"$f":"SUM(G62:G76)","v":0},{"$f":"SUM(H62:H76)","v":0},null,null,null,null,null,null,null,{"$f":"SUM(P62:P76)","v":0},{"$f":"SUM(Q62:Q76)","v":0},{"$f":"SUM(R62:R76)","v":0}]
[]
[]
[null,null,null,null,null,null,null,null,{"$f":"MAX(0,INT((3*F96-MAX((R96-G96),0))/3))","v":0},":",{"$f":"MAX(INT((3*P96-MAX((H96-Q96),0))/3),0)","v":0}]
[null,1,null,null,null,null,null,null,null,null,null,1]
[null,2,null,null,null,null,null,null,null,null,null,2]
[null,3,null,null,null,null,null,null,null,null,null,3]
[null,4,null,null,null,null,null,null,null,null,null,4]
[null,5,null,null,null,null,null,null,null,null,null,5]
[null,6,null,null,null,null,null,null,null,null,null,6]
[null,7,null,null,null,null,null,null,null,null,null,7]
[null,8,null,null,null,null,null,null,null,null,null,8]
[null,9,null,null,null,null,null,null,null,null,null,9]
[null,10,null,null,null,null,null,null,null,null,null,10]
[null,11,null,null,null,null,null,null,null,null,null,11]
[null,12,null,null,null,null,null,null,null,null,null,12]
[null,13,null,null,null,null,null,null,null,null,null,13]
[null,14,null,null,null,null,null,null,null,null,null,14]
[null,15,null,null,null,null,null,null,null,null,null,15]
[null,null,null,null,null,{"$f":"SUM(F81:F95)","v":0},{"$f":"SUM(G81:G95)","v":0},{"$f":"SUM(H81:H95)","v":0},null,null,null,null,null,null,null,{"$f":"SUM(P81:P95)","v":0},{"$f":"SUM(Q81:Q95)","v":0},{"$f":"SUM(R81:R95)","v":0}]
[]
[]
[null,null,null,null,null,null,null,null,{"$f":"MAX(0,INT((3*F115-MAX((R115-G115),0))/3))","v":0},":",{"$f":"MAX(INT((3*P115-MAX((H115-Q115),0))/3),0)","v":0}]
[null,1,null,null,null,null,null,null,null,null,null,1]
[null,2,null,null,null,null,null,null,null,null,null,2]
[null,3,null,null,null,null,null,null,null,null,null,3]
[null,4,null,null,null,null,null,null,null,null,null,4]
[null,5,null,null,null,null,null,null,null,null,null,5]
[null,6,null,null,null,null,null,null,null,null,null,6]
[null,7,null,null,null,null,null,null,null,null,null,7]
[null,8,null,null,null,null,null,null,null,null,null,8]
[null,9,null,null,null,null,null,null,null,null,null,9]
[null,10,null,null,null,null,null,null,null,null,null,10]
[null,11,null,null,null,null,null,null,null,null,null,11]
[null,12,null,null,null,null,null,null,null,null,null,12]
[null,13,null,null,null,null,null,null,null,null,null,13]
[null,14,null,null,null,null,null,null,null,null,null,14]
[null,15,null,null,null,null,null,null,null,null,null,15]
[null,null,null,null,null,{"$f":"SUM(F100:F114)","v":0},{"$f":"SUM(G100:G114)","v":0},{"$f":"SUM(H100:H114)","v":0},null,null,null,null,null,null,null,{"$f":"SUM(P100:P114)","v":0},{"$f":"SUM(Q100:Q114)","v":0},{"$f":"SUM(R100:R114)","v":0}]

{"sheet":"Реальные матчи","index":2,"n_rows":274,"n_cols":25,"rows_kept":274,"cut":false,"hidden":false,"merged":[]}
[null,null,null,null,null,null,null,null,null,null,null,null,null,null,null,null,null,null,"доп от",null,"п","доп ф","от",7]
[null,"Сочи",4,null,null,null,null,null,null,null,null,null,null,null,null,null,null,null,null,null,0,0,0]
[1,"Денис Адамов",90,null,null,null,null,null,null,null,null,null,null,null,null,null,null,null,null,null,2,1,1]
[2,"Артем Мещанинов",90,null,null,null,null,null,null,null,null,null,null,null,null,null,null,null,null,null,2,1,1]
[3,"Ваня Дркушич",90,null,null,null,null,null,null,null,null,null,null,null,null,null,null,null,null,null,2,1,1]
[4,"Игорь Юрганов",90,null,null,null,null,null,null,null,null,null,null,null,null,null,null,null,null,null,2,1,1]
[5,"Тимофей Маргасов",90,null,null,null,null,null,null,null,null,null,null,null,null,null,null,null,null,null,2,1,1]
[6,"Кристиан Нобоа",90,2,null,null,null,null,null,null,null,null,null,null,null,null,null,null,null,2,2,1,1]
[7,"Сергей Терехов",90,null,null,null,null,null,null,null,null,null,null,null,null,null,null,null,null,null,2,1,1]
[8,"Артем Макарчук",90,null,null,null,null,null,null,null,null,null,null,null,null,null,null,null,null,null,2,1,1,null," "]
[9,"Жоаозиньо",90,null,null,null,null,null,null,null,null,null,null,null,null,null,null,null,null,null,2,1,1]
[10,"Артур Юсупов",90,null,null,null,null,null,null,null,null,null,null,null,null,null,null,null,null,null,2,1,1]
[11,"Георгий Мелкадзе",90,1,null,null,null,null,null,null,null,null,null,null,null,null,null,null,null,1,2,1,1,null," "]
[12,"Никита Бурмистров",90,null,null,null,null,null,null,null,null,null,null,null,null,null,null,null,null,null,2,1,1]
[13,"Владислав Сарвели",90,1,null,null,null,null,null,null,null,null,null,null,null,null,null,null,null,1,2,1,1]
[14,"Тимофей Шипунов",90,null,null,null,null,null,null,null,null,null,null,null,null,null,null,null,null,null,2,1,1]
[15,"Кирилл Кравцов",90,null,null,null,null,null,null,null,null,null,null,null,null,null,null,null,null,null,2,1,1]
[16,"Даниил Мартовой",90,null,null,null,null,null,null,null,null,null,null,null,null,null,null,null,null,null,2,1,1]
[null,"Химки",1,null,null,null,null,null,null,null,null,null,null,null,null,null,null,null,null,null,0,0,0]
[1,"Илья Лантратов",90,null,null,null,null,null,null,null,null,null,null,null,null,null,null,null,null,null,0,0,0]
[2,"Илья Камышев",90,null,null,null,null,null,null,null,null,null,null,null,null,null,null,null,null,null,0,0,0]
[3,"Дмитрий Тихий",90,null,null,null,null,null,null,null,null,null,null,null,null,null,null,null,null,null,0,0,0]
[4,"Захар Волков",90,null,null,null,null,null,null,null,null,null,null,null,null,null,null,null,null,null,0,0,0]
[5,"Александр Филин",90,null,null,null,null,null,null,null,null,null,null,null,null,null,null,null,null,null,0,0,0]
[6,"Брайан Идову",90,null,null,null,null,null,null,null,null,null,null,null,null,null,null,null,null,null,0,0,0]
[7,"Аяз Гулиев",90,null,null,null,null,null,null,null,null,null,null,null,null,null,null,null,null,null,0,0,0]
[8,"Денис Глушаков",90,null,null,null,null,null,null,null,null,null,null,null,null,null,null,null,null,null,0,0,0,null," "]
[9,"Роман Мори Гбане",90,null,null,null,null,null,null,null,null,null,null,null,null,null,null,null,null,null,0,0,0]
[10,"Илья Садыгов",90,null,null,null,null,null,null,null,null,null,null,null,null,null,null,null,null,null,0,0,0]
[11,"Александр Руденко",90,null,null,null,null,null,null,null,null,null,null,null,null,null,null,null,null,null,0,0,0,null," "]
[12,"Артур Черный",90,null,null,null,null,null,null,null,null,null,null,null,null,null,null,null,null,null,0,0,0]
[13,"Александр Ломовицкий",90,null,null,null,null,null,null,null,null,null,null,null,null,null,null,null,null,null,0,0,0]
[14,"Резиуан Мирзов",90,null,null,null,null,null,null,null,null,null,null,null,null,null,null,null,null,null,0,0,0]
[15,"Александр Долгов",90,null,null,null,null,null,null,null,null,null,null,null,null,null,null,null,null,null,0,0,0]
[16,"Бутта Магомедов",90,null,null,null,null,null,null,null,null,null,null,null,null,null,null,null,null,null,0,0,0]
[null,"Пари НН",2,null,null,null,null,null,null,null,null,null,null,null,null,null,null,null,null,null,0,0,0]
[1,"Никита Гойло",90,null,null,null,null,null,null,null,null,null,null,null,null,null,null,null,null,null,1,1,0]
[2,"Лукас Масоэро",90,null,null,null,null,null,null,null,null,null,null,null,null,null,null,null,null,null,1,1,0]
[3,"Кирилл Гоцук",90,null,null,null,null,null,null,null,null,null,null,null,null,null,null,null,null,null,1,1,0]
[4,"Илья Агапов",90,null,null,null,null,null,null,null,null,null,null,null,null,null,null,null,null,null,1,1,0]
[5,"Дмитрий Стоцкий",90,1,null,null,null,null,null,null,null,null,null,null,null,null,null,null,null,1,1,1,0]
[6,"Альберт Шарипов",90,null,null,null,null,null,null,null,null,null,null,null,null,null,null,null,null,null,1,1,0]
[7,"Мамаду Майга",90,null,null,null,null,null,null,null,null,null,null,null,null,null,null,null,null,null,1,1,0]
[8,"Эльмир Набиуллин",90,null,null,null,null,null,null,null,null,null,null,null,null,null,null,null,null,null,1,1,0,null," "]
[9,"Иброгимхалил Юлдошев",90,null,null,null,null,null,null,null,null,null,null,null,null,null,null,null,null,null,1,1,0]
[10,"Николай Калинский",90,1,null,null,null,null,null,null,null,null,null,null,null,null,null,null,null,1,1,1,0]
[11,"Вячеслав Кротов",90,null,null,null,null,null,null,null,null,null,null,null,null,null,null,null,null,null,1,1,0,null," "]
[12,"Дмитрий Рыбчинский",90,null,null,null,null,null,null,null,null,null,null,null,null,null,null,null,null,null,1,1,0]
[13,"Тимур Сулейманов",90,null,null,null,null,null,null,null,null,null,null,null,null,null,null,null,null,null,1,1,0]
[14,"Жоау Милсон",90,null,null,null,null,null,null,null,null,null,null,null,null,null,null,null,null,null,1,1,0]
[15,"Никита Каккоев",90,null,null,null,null,null,null,null,null,null,null,null,null,null,null,null,null,null,1,1,0]
[16,"Виктор Александров",90,null,null,null,null,null,null,null,null,null,null,null,null,null,null,null,null,null,1,1,0]
[null,"Динамо",2,null,null,null,null,null,null,null,null,null,null,null,null,null,null,null,null,null,0,0,0]
[1,"Антон Шунин",90,null,null,null,null,null,null,null,null,null,null,null,null,null,null,null,null,null,1,1,0]
[2,"Сергей Паршивлюк",90,null,null,null,null,null,null,null,null,null,null,null,null,null,null,null,null,null,1,1,0]
[3,"Саба Сазонов",90,null,null,null,null,null,null,null,null,null,null,null,null,null,null,null,null,null,1,1,0]
[4,"Роберто Фернандес",90,null,null,null,null,null,null,null,null,null,null,null,null,null,null,null,null,null,1,1,0]
[5,"Дмитрий Скопинцев",90,null,null,null,null,null,null,null,null,null,null,null,null,null,null,null,null,null,1,1,0]
[6,"Лука Гагнидзе",90,null,null,null,null,null,null,null,null,null,null,null,null,null,null,null,null,null,1,1,0]
[7,"Даниил Фомин",90,1,null,null,null,null,null,null,null,null,null,null,null,null,null,null,null,1,1,1,0]
[8,"Арсен Захарян",90,null,null,null,null,null,null,null,null,null,null,null,null,null,null,null,null,null,1,1,0,null," "]
[9,"Денис Макаров",90,null,null,null,null,null,null,null,null,null,null,null,null,null,null,null,null,null,1,1,0]
[10,"Константин Тюкавин",90,1,null,null,null,null,null,null,null,null,null,null,null,null,null,null,null,1,1,1,0]
[11,"Вячеслав Грулев",90,null,null,null,null,null,null,null,null,null,null,null,null,null,null,null,null,null,1,1,0,null," "]
[12,"Даниил Лесовой",90,null,null,null,null,null,null,null,null,null,null,null,null,null,null,null,null,null,1,1,0]
[13,"Александр Кутицкий",90,null,null,null,null,null,null,null,null,null,null,null,null,null,null,null,null,null,1,1,0]
[14,"Ярослав Гладышев",90,null,null,null,null,null,null,null,null,null,null,null,null,null,null,null,null,null,1,1,0]
[15,null,null,null,null,null,null,null,null,null,null,null,null,null,null,null,null,null,null,null,1,1,0]
[16,null,null,null,null,null,null,null,null,null,null,null,null,null,null,null,null,null,null,null,1,1,0]
[null,"Факел",1,null,null,null,null,null,null,null,null,null,null,null,null,null,null,null,null,null,0,0,0]
[1,"Илья Свинов",90,null,null,null,null,null,null,null,null,null,null,null,null,null,null,null,null,null,0,0,0]
[2,"Кирилл Суслов",90,null,null,null,null,null,null,null,null,null,null,null,null,null,null,null,null,null,0,0,0]
[3,"Сергей Божин",90,null,null,null,null,null,null,null,null,null,null,null,null,null,null,null,null,null,0,0,0]
[4,"Аслан Дашаев",90,1,null,null,null,null,null,null,null,null,null,null,null,null,null,null,null,1,0,0,0]
[5,"Василий Черов",90,null,null,null,null,null,null,null,null,null,null,null,null,null,null,null,null,null,0,0,0]
[6,"Андрей Мендель",90,null,null,null,null,null,null,null,null,null,null,null,null,null,null,null,null,null,0,0,0]
[7,"Олег Дмитриев",90,null,null,null,null,null,null,null,null,null,null,null,null,null,null,null,null,null,0,0,0]
[8,"Евгений Шляков",90,null,null,null,null,null,null,null,null,null,null,null,null,null,null,null,null,null,0,0,0,null," "]
[9,"Роман Акбашев",90,null,null,null,null,null,null,null,null,null,null,null,null,null,null,null,null,null,0,0,0]
[10,"Максим Максимов",90,null,null,null,null,null,null,null,null,null,null,null,null,null,null,null,null,null,0,0,0]
[11,"Хызыр Аппаев",90,null,null,null,null,null,null,null,null,null,null,null,null,null,null,null,null,null,0,0,0,null," "]
[12,"Ираклий Квеквескири",90,null,null,null,null,null,null,null,null,null,null,null,null,null,null,null,null,null,0,0,0]
[13,"Руслан Магаль",90,null,null,null,null,null,null,null,null,null,null,null,null,null,null,null,null,null,0,0,0]
[14,"Владислав Мастерной",90,null,null,null,null,null,null,null,null,null,null,null,null,null,null,null,null,null,0,0,0]
[15,"Алихан Шаваев",90,null,null,null,null,null,null,null,null,null,null,null,null,null,null,null,null,null,0,0,0]
[16,"Георгий Гонгадзе",90,null,null,null,null,null,null,null,null,null,null,null,null,null,null,null,null,null,0,0,0]
[null,"Спартак",4,null,null,null,null,null,null,null,null,null,null,null,null,null,null,null,null,null,0,0,0]
[1,"Александр Максименко",90,null,null,null,null,null,null,null,null,null,null,null,null,null,null,null,null,null,2,1,1]
[2,"Даниил Денисов",90,1,null,null,null,null,null,null,null,null,null,null,null,null,null,null,null,1,2,1,1]
[3,"Руслан Литвинов",90,null,null,null,null,null,null,null,null,null,null,null,null,null,null,null,null,null,2,1,1]
[4,"Георгий Джикия",90,null,null,null,null,null,null,null,null,null,null,null,null,null,null,null,null,null,2,1,1]
[5,"Даниил Хлусевич",90,null,null,null,null,null,null,null,null,null,null,null,null,null,null,null,null,null,2,1,1]
[6,"Кристофер Мартинс",90,null,null,null,null,null,null,null,null,null,null,null,null,null,null,null,null,null,2,1,1]
[7,"Наиль Умяров",90,null,null,null,null,null,null,null,null,null,null,null,null,null,null,null,null,null,2,1,1]
[8,"Роман Зобнин",90,1,null,null,null,null,null,null,null,null,null,null,null,null,null,null,null,1,2,1,1,null," "]
[9,"Александр Соболев",90,null,null,null,null,null,null,null,null,null,null,null,null,null,null,null,null,null,2,1,1]
[10,"Михаил Игнатов",90,null,null,null,null,null,null,null,null,null,null,null,null,null,null,null,null,null,2,1,1]
[11,"Квинси Промес",90,1,null,null,null,null,null,null,null,null,null,null,null,null,null,null,null,1,2,1,1,null," "]
[12,"Никита Чернов",90,null,null,null,null,null,null,null,null,null,null,null,null,null,null,null,null,null,2,1,1]
[13,"Антон Зиньковский",90,null,null,null,null,null,null,null,null,null,null,null,null,null,null,null,null,null,2,1,1]
[14,"Мацей Рыбус",90,1,null,null,null,null,null,null,null,null,null,null,null,null,null,null,null,1,2,1,1]
[15,"Данил Пруцев",90,null,null,null,null,null,null,null,null,null,null,null,null,null,null,null,null,null,2,1,1]
[16,"Николай Рассказов",90,null,null,null,null,null,null,null,null,null,null,null,null,null,null,null,null,null,2,1,1]
[null,"Ахмат",1,null,null,null,null,null,null,null,null,null,null,null,null,null,null,null,null,null,0,0,0]
[1,"Михаил Опарин",90,null,null,null,null,null,null,null,null,null,null,null,null,null,null,null,null,null,0,0,0]
[2,"Марат Быстров",90,null,null,null,null,null,null,null,null,null,null,null,null,null,null,null,null,null,0,0,0]
[3,"Зоран Нижич",90,null,null,null,null,null,null,null,null,null,null,null,null,null,null,null,null,null,0,0,0]
[4,"Юрий Журавлев",90,null,null,null,null,null,null,null,null,null,null,null,null,null,null,null,null,null,0,0,0]
[5,"Дарко Тодорович",90,null,null,null,null,null,null,null,null,null,null,null,null,null,null,null,null,null,0,0,0]
[6,"Александр Трошечкин",90,null,null,null,null,null,null,null,null,null,null,null,null,null,null,null,null,null,0,0,0]
[7,"Артем Тимофеев",90,null,null,null,null,null,null,null,null,null,null,null,null,null,null,null,null,null,0,0,0]
[8,"Мирослав Богосавац",90,null,null,null,null,null,null,null,null,null,null,null,null,null,null,null,null,null,0,0,0,null," "]
[9,"Иван Олейников",90,null,null,null,null,null,null,null,null,null,null,null,null,null,null,null,null,null,0,0,0]
[10,"Бернард Бериша",90,null,null,null,null,null,null,null,null,null,null,null,null,null,null,null,null,null,0,0,0]
[11,"Мохамед Конате",90,1,null,null,null,null,null,null,null,null,null,null,null,null,null,null,null,1,0,0,0,null," "]
[12,"Антон Швец",90,null,null,null,null,null,null,null,null,null,null,null,null,null,null,null,null,null,0,0,0]
[13,"Ризван Ташаев",90,null,null,null,null,null,null,null,null,null,null,null,null,null,null,null,null,null,0,0,0]
[14,"Евгений Харин",90,null,null,null,null,null,null,null,null,null,null,null,null,null,null,null,null,null,0,0,0]
[15,"Владимир Ильин",90,null,null,null,null,null,null,null,null,null,null,null,null,null,null,null,null,null,0,0,0]
[16,"Ризван Уциев",90,null,null,null,null,null,null,null,null,null,null,null,null,null,null,null,null,null,0,0,0]
[null,"Крылья Советов",2,null,null,null,null,null,null,null,null,null,null,null,null,null,null,null,null,null,0,0,0]
[1,"Иван Ломаев",90,null,null,null,null,null,null,null,null,null,null,null,null,null,null,null,null,null,2,1,1]
[2,"Гленн Бейл",90,null,null,null,null,null,null,null,null,null,null,null,null,null,null,null,null,null,2,1,1]
[3,"Роман Евгеньев",90,null,null,null,null,null,null,null,null,null,null,null,null,null,null,null,null,null,2,1,1]
[4,"Александр Солдатенков",90,null,null,null,null,null,null,null,null,null,null,null,null,null,null,null,null,null,2,1,1]
[5,"Юрий Горшков",90,null,null,null,null,null,null,null,null,null,null,null,null,null,null,null,null,null,2,1,1]
[6,"Роман Ежов",90,1,null,null,null,null,null,null,null,null,null,null,null,null,null,null,null,1,2,1,1]
[7,"Матео Барач",90,null,null,null,null,null,null,null,null,null,null,null,null,null,null,null,null,null,2,1,1]
[8,"Александр Коваленко",90,1,null,null,null,null,null,null,null,null,null,null,null,null,null,null,null,1,2,1,1,null," "]
[9,"Артем Соколов",90,null,null,null,null,null,null,null,null,null,null,null,null,null,null,null,null,null,2,1,1]
[10,"Максим Глушенков",90,null,null,null,null,null,null,null,null,null,null,null,null,null,null,null,null,null,2,1,1]
[11,"Денис Якуба",90,null,null,null,null,null,null,null,null,null,null,null,null,null,null,null,null,null,2,1,1,null," "]
[12,"Владимир Хубулов",90,null,null,null,null,null,null,null,null,null,null,null,null,null,null,null,null,null,2,1,1]
[13,"Дмитрий Цыпченко",90,null,null,null,null,null,null,null,null,null,null,null,null,null,null,null,null,null,2,1,1]
[14,"Максим Витюгов",90,null,null,null,null,null,null,null,null,null,null,null,null,null,null,null,null,null,2,1,1]
[15,"Илья Гапонов",90,null,null,null,null,null,null,null,null,null,null,null,null,null,null,null,null,null,2,1,1]
[16,"Георгий Зотов",90,null,null,null,null,null,null,null,null,null,null,null,null,null,null,null,null,null,2,1,1]
[null,"Урал",0,null,null,null,null,null,null,null,null,null,null,null,null,null,null,null,null,null,0,0,0]
[1,"Илья Помазун",90,null,null,null,null,null,null,null,null,null,null,null,null,null,null,null,null,null,0,0,0]
[2,"Мингиян Бевеев",90,null,null,null,null,null,null,null,null,null,null,null,null,null,null,null,null,null,0,0,0]
[3,"Алексей Герасимов",90,null,null,null,null,null,null,null,null,null,null,null,null,null,null,null,null,null,0,0,0]
[4,"Эмерсон",90,null,null,null,null,null,null,null,null,null,null,null,null,null,null,null,null,null,0,0,0]
[5,"Артем Мамин",90,null,null,null,null,null,null,null,null,null,null,null,null,null,null,null,null,null,0,0,0]
[6,"Лео Гогличидзе",90,null,null,null,null,null,null,null,null,null,null,null,null,null,null,null,null,null,0,0,0]
[7,"Юрий Газинский",90,null,null,null,null,null,null,null,null,null,null,null,null,null,null,null,null,null,0,0,0]
[8,"Вячеслав Подберезкин",90,null,null,null,null,null,null,null,null,null,null,null,null,null,null,null,null,null,0,0,0,null," "]
[9,"Александр Юшин",90,null,null,null,null,null,null,null,null,null,null,null,null,null,null,null,null,null,0,0,0]
[10,"Эрик Бикфалви",90,null,null,null,null,null,null,null,null,null,null,null,null,null,null,null,null,null,0,0,0]
[11,"Алексей Каштанов",90,null,null,null,null,null,null,null,null,null,null,null,null,null,null,null,null,null,0,0,0,null," "]
[12,"Рамазан Гаджимурадов",90,null,null,null,null,null,null,null,null,null,null,null,null,null,null,null,null,null,0,0,0]
[13,"Иван Кузьмичев",90,null,null,null,null,null,null,null,null,null,null,null,null,null,null,null,null,null,0,0,0]
[14,"Фаниль Сунгатулин",90,null,null,null,null,null,null,null,null,null,null,null,null,null,null,null,null,null,0,0,0]
[15,"Алексей Евсеев",90,null,null,null,null,null,null,null,null,null,null,null,null,null,null,null,null,null,0,0,0]
[16,"Илья Быковский",90,null,null,null,null,null,null,null,null,null,null,null,null,null,null,null,null,null,0,0,0]
[null,"Зенит",4,null,null,null,null,null,null,null,null,null,null,null,null,null,null,null,null,null,0,0,0]
[1,"Михаил Кержаков",90,null,null,null,null,null,null,null,null,null,null,null,null,null,null,null,null,null,2,1,2]
[2,"Вячеслав Караваев",90,null,null,null,null,null,null,null,null,null,null,null,null,null,null,null,null,null,2,1,2]
[3,"Деян Ловрен",90,null,null,null,null,null,null,null,null,null,null,null,null,null,null,null,null,null,2,1,2]
[4,"Родригао",90,1,null,null,null,null,null,null,null,null,null,null,null,null,null,null,null,1,2,1,2]
[5,"Дуглас Сантос",90,null,null,null,null,null,null,null,null,null,null,null,null,null,null,null,null,null,2,1,2]
[6,"Далер Кузяев",90,null,null,null,null,null,null,null,null,null,null,null,null,null,null,null,null,null,2,1,2]
[7,"Вильмар Барриос",90,null,null,null,null,null,null,null,null,null,null,null,null,null,null,null,null,null,2,1,2]
[8,"Малком",90,2,null,null,null,null,null,null,null,null,null,null,null,null,null,null,null,2,2,1,2,null," "]
[9,"Вендел",90,null,null,null,null,null,null,null,null,null,null,null,null,null,null,null,null,null,2,1,2]
[10,"Андрей Мостовой",90,1,null,null,null,null,null,null,null,null,null,null,null,null,null,null,null,1,2,1,2]
[11,"Иван Сергеев",90,null,null,null,null,null,null,null,null,null,null,null,null,null,null,null,null,null,2,1,2,null," "]
[12,"Зелимхан Бакаев",90,null,null,null,null,null,null,null,null,null,null,null,null,null,null,null,null,null,2,1,2]
[13,"Матео Кассьерра",90,null,null,null,null,null,null,null,null,null,null,null,null,null,null,null,null,null,2,1,2]
[14,"Александр Ерохин",90,null,null,null,null,null,null,null,null,null,null,null,null,null,null,null,null,null,2,1,2]
[15,"Данил Круговой",90,null,null,null,null,null,null,null,null,null,null,null,null,null,null,null,null,null,2,1,2]
[16,"Густаво Мантуан",90,null,null,null,null,null,null,null,null,null,null,null,null,null,null,null,null,null,2,1,2]
[null,"Локомотив",5,null,null,null,null,null,null,null,null,null,null,null,null,null,null,null,null,null,0,0,0]
[1,"Даниил Худяков",90,null,null,null,null,null,null,null,null,null,null,null,null,null,null,null,null,null,2,1,1]
[2,"Дмитрий Живоглядов",90,null,null,null,null,null,null,null,null,null,null,null,null,null,null,null,null,null,2,1,1]
[3,"Станислав Магкеев",90,null,null,null,null,null,null,null,null,null,null,null,null,null,null,null,null,null,2,1,1]
[4,"Тин Едвай",90,null,null,null,null,null,null,null,null,null,null,null,null,null,null,null,null,null,2,1,1]
[5,"Наир Тикнизян",90,null,null,null,null,null,null,null,null,null,null,null,null,null,null,null,null,null,2,1,1]
[6,"Дмитрий Баринов",90,null,null,null,null,null,null,null,null,null,null,null,null,null,null,null,null,null,2,1,1]
[7,"Артем Карпукас",90,null,null,null,null,null,null,null,null,null,null,null,null,null,null,null,null,null,2,1,1]
[8,"Джирано Керк",90,1,null,null,null,null,null,null,null,null,null,null,null,null,null,null,null,1,2,1,1,null," "]
[9,"Антон Миранчук",90,1,null,null,null,null,null,null,null,null,null,null,null,null,null,null,null,1,2,1,1]
[10,"Франсуа Камано",90,null,null,null,null,null,null,null,null,null,null,null,null,null,null,null,null,null,2,1,1]
[11,"Иван Игнатьев",90,3,null,null,null,null,null,null,null,null,null,null,null,null,null,null,null,3,2,1,1,null," "]
[12,"Константин Марадишвили",90,null,null,null,null,null,null,null,null,null,null,null,null,null,null,null,null,null,2,1,1]
[13,"Марко Раконьяц",90,null,null,null,null,null,null,null,null,null,null,null,null,null,null,null,null,null,2,1,1]
[14,"Даниил Куликов",90,null,null,null,null,null,null,null,null,null,null,null,null,null,null,null,null,null,2,1,1]
[15,"Вадим Раков",90,null,null,null,null,null,null,null,null,null,null,null,null,null,null,null,null,null,2,1,1]
[16,"Абдула Багамаев",90,null,null,null,null,null,null,null,null,null,null,null,null,null,null,null,null,null,2,1,1]
[null,"Оренбург",1,null,null,null,null,null,null,null,null,null,null,null,null,null,null,null,null,null,0,0,0]
[1,"Евгений Гошев",90,null,null,null,null,null,null,null,null,null,null,null,null,null,null,null,null,null,0,0,0]
[2,"Владимир Полуяхтов",90,null,null,null,null,null,null,null,null,null,null,null,null,null,null,null,null,null,0,0,0]
[3,"Михаил Сиваков",90,null,null,null,null,null,null,null,null,null,null,null,null,null,null,null,null,null,0,0,0]
[4,"Александр Павловец",90,null,null,null,null,null,null,null,null,null,null,null,null,null,null,null,null,null,0,0,0]
[5,"Данила Хотулев",90,null,null,null,null,null,null,null,null,null,null,null,null,null,null,null,null,null,0,0,0]
[6,"Кирилл Печенин",90,null,null,null,null,null,null,null,null,null,null,null,null,null,null,null,null,null,0,0,0]
[7,"Степан Оганесян",90,null,null,null,null,null,null,null,null,null,null,null,null,null,null,null,null,null,0,0,0]
[8,"Тимур Аюпов",90,null,null,null,null,null,null,null,null,null,null,null,null,null,null,null,null,null,0,0,0,null," "]
[9,"Джимми Марин",90,null,null,null,null,null,null,null,null,null,null,null,null,null,null,null,null,null,0,0,0]
[10,"Лукас Вера",90,null,null,null,null,null,null,null,null,null,null,null,null,null,null,null,null,null,0,0,0]
[11,"Владимир Сычевой",90,1,null,null,null,null,null,null,null,null,null,null,null,null,null,null,null,1,0,0,0,null," "]
[12,"Александр Эктов",90,null,null,null,null,null,null,null,null,null,null,null,null,null,null,null,null,null,0,0,0]
[13,"Габриэль Флорентин",90,null,null,null,null,null,null,null,null,null,null,null,null,null,null,null,null,null,0,0,0]
[14,"Батраз Гурциев",90,null,null,null,null,null,null,null,null,null,null,null,null,null,null,null,null,null,0,0,0]
[15,"Матео Стаматов",90,null,null,null,null,null,null,null,null,null,null,null,null,null,null,null,null,null,0,0,0]
[16,"Диего Акоста",90,null,null,null,null,null,null,null,null,null,null,null,null,null,null,null,null,null,0,0,0]
[null,"Торпедо",1,null,null,null,null,null,null,null,null,null,null,null,null,null,null,null,null,null,0,0,0]
[1,"Егор Бабурин",90,null,null,null,null,null,null,null,null,null,null,null,null,null,null,null,null,null,0,0,0]
[2,"Игорь Смольников",90,null,null,null,null,null,null,null,null,null,null,null,null,null,null,null,null,null,0,0,0]
[3,"Олег Кожемякин",90,null,null,null,null,null,null,null,null,null,null,null,null,null,null,null,null,null,0,0,0]
[4,"Егор Прошкин",90,null,null,null,null,null,null,null,null,null,null,null,null,null,null,null,null,null,0,0,0]
[5,"Равиль Нетфуллин",90,null,null,null,null,null,null,null,null,null,null,null,null,null,null,null,null,null,0,0,0]
[6,"Артем Самсонов",90,null,null,null,null,null,null,null,null,null,null,null,null,null,null,null,null,null,0,0,0]
[7,"Хожимат Эркинов",90,null,null,null,null,null,null,null,null,null,null,null,null,null,null,null,null,null,0,0,0]
[8,"Иван Енин",90,null,null,null,null,null,null,null,null,null,null,null,null,null,null,null,null,null,0,0,0,null," "]
[9,"Алексей Померко",90,null,null,null,null,null,null,null,null,null,null,null,null,null,null,null,null,null,0,0,0]
[10,"Игорь Лебеденко",90,null,null,null,null,null,null,null,null,null,null,null,null,null,null,null,null,null,0,0,0]
[11,"Денис Лаптев",90,null,null,null,null,null,null,null,null,null,null,null,null,null,null,null,null,null,0,0,0,null," "]
[12,"Богдан Рейхмен",90,null,null,null,null,null,null,null,null,null,null,null,null,null,null,null,null,null,0,0,0]
[13,"Давид Караев",90,null,null,null,null,null,null,null,null,null,null,null,null,null,null,null,null,null,0,0,0]
[14,"Александр Рязанцев",90,null,null,null,null,null,null,null,null,null,null,null,null,null,null,null,null,null,0,0,0]
[15,"Максим Турищев",90,null,null,null,null,null,null,null,null,null,null,null,null,null,null,null,null,null,0,0,0]
[16,null,90,null,null,null,null,null,null,null,null,null,null,null,null,null,null,null,null,null,0,0,0]
[null,"Краснодар",4,null,null,null,null,null,null,null,null,null,null,null,null,null,null,null,null,null,0,0,0]
[1,"Матвей Сафонов",90,null,null,null,null,null,null,null,null,null,null,null,null,null,null,null,null,null,2,1,1]
[2,"Сергей Волков",90,null,null,null,null,null,null,null,null,null,null,null,null,null,null,null,null,null,2,1,1]
[3,"Сергей Бородин",90,null,null,null,null,null,null,null,null,null,null,null,null,null,null,null,null,null,2,1,1]
[4,"Кайо",90,null,null,null,null,null,null,null,null,null,null,null,null,null,null,null,null,null,2,1,1]
[5,"Кристиан Рамирес",90,null,null,null,null,null,null,null,null,null,null,null,null,null,null,null,null,null,2,1,1]
[6,"Александр Черников",90,null,null,null,null,null,null,null,null,null,null,null,null,null,null,null,null,null,2,1,1]
[7,"Никита Кривцов",90,null,null,null,null,null,null,null,null,null,null,null,null,null,null,null,null,null,2,1,1]
[8,"Алексей Ионов",90,null,null,null,null,null,null,null,null,null,null,null,null,null,null,null,null,null,2,1,1,null," "]
[9,"Эдуард Сперцян",90,2,null,null,null,null,null,null,null,null,null,null,null,null,null,null,null,2,2,1,1]
[10,"Олакунле Олусегун",90,null,null,null,null,null,null,null,null,null,null,null,null,null,null,null,null,null,2,1,1]
[11,"Джон Кордоба",90,1,null,null,null,null,null,null,null,null,null,null,null,null,null,null,null,1,2,1,1,null," "]
[12,"Михайло Баньяц",90,null,null,null,null,null,null,null,null,null,null,null,null,null,null,null,null,null,2,1,1]
[13,"Владислав Самко",90,null,null,null,null,null,null,null,null,null,null,null,null,null,null,null,null,null,2,1,1]
[14,"Вячеслав Литвинов",90,null,null,null,null,null,null,null,null,null,null,null,null,null,null,null,null,null,2,1,1]
[15,"Ираклий Манелов",90,null,null,null,null,null,null,null,null,null,null,null,null,null,null,null,null,null,2,1,1]
[16,"Ильзат Ахметов",90,1,null,null,null,null,null,null,null,null,null,null,null,null,null,null,null,1,2,1,1]
[null,"Ростов",0,null,null,null,null,null,null,null,null,null,null,null,null,null,null,null,null,null,0,0,0]
[1,"Сергей Песьяков",null,null,null,null,null,null,null,null,null,null,null,null,null,null,null,null,null,null,1,0,2]
[2,"Александр Сильянов",null,null,null,null,null,null,null,null,null,null,null,null,null,null,null,null,null,null,1,0,2]
[3,"Максим Осипенко",null,null,null,null,null,null,null,null,null,null,null,null,null,null,null,null,null,null,1,0,2]
[4,"Денис Терентьев",null,null,null,null,null,null,null,null,null,null,null,null,null,null,null,null,null,null,1,0,2]
[5,"Евгений Чернов",null,null,null,null,null,null,null,null,null,null,null,null,null,null,null,null,null,null,1,0,2]
[6,"Дмитрий Полоз",null,null,null,null,null,null,null,null,null,null,null,null,null,null,null,null,null,null,1,0,2]
[7,"Данил Глебов",null,null,null,null,null,null,null,null,null,null,null,null,null,null,null,null,null,null,1,0,2]
[8,"Кирилл Щетинин",null,null,null,null,null,null,null,null,null,null,null,null,null,null,null,null,null,null,1,0,2,null," "]
[9,"Даниил Уткин",null,null,null,null,null,null,null,null,null,null,null,null,null,null,null,null,null,null,1,0,2]
[10,"Хорен Байрамян",null,null,null,null,null,null,null,null,null,null,null,null,null,null,null,null,null,null,1,0,2]
[11,"Николай Комличенко",null,null,null,null,null,null,null,null,null,null,null,null,null,null,null,null,null,null,1,0,2,null," "]
[12,"Алексей Миронов",null,null,null,null,null,null,null,null,null,null,null,null,null,null,null,null,null,null,1,0,2]
[13,"Данила Прохин",null,null,null,null,null,null,null,null,null,null,null,null,null,null,null,null,null,null,1,0,2]
[14,"Степан Мельников",null,null,null,null,null,null,null,null,null,null,null,null,null,null,null,null,null,null,1,0,2]
[15,"Артем Нтумба",null,null,null,null,null,null,null,null,null,null,null,null,null,null,null,null,null,null,1,0,2]
[16,"Егор Голенков",null,null,null,null,null,null,null,null,null,null,null,null,null,null,null,null,null,null,1,0,2]
[null,"ЦСКА",0,null,null,null,null,null,null,null,null,null,null,null,null,null,null,null,null,null,0,0,0]
[1,"Игорь Акинфеев",null,null,null,null,null,null,null,null,null,null,null,null,null,null,null,null,null,null,1,0,2]
[2,"Милан Гайич",null,null,null,null,null,null,null,null,null,null,null,null,null,null,null,null,null,null,1,0,2]
[3,"Кирилл Набабкин",null,null,null,null,null,null,null,null,null,null,null,null,null,null,null,null,null,null,1,0,2]
[4,"Игорь Дивеев",null,null,null,null,null,null,null,null,null,null,null,null,null,null,null,null,null,null,1,0,2]
[5,"Бактиёр Зайнутдинов",null,null,null,null,null,null,null,null,null,null,null,null,null,null,null,null,null,null,1,0,2]
[6,"Мойзес",null,null,null,null,null,null,null,null,null,null,null,null,null,null,null,null,null,null,1,0,2]
[7,"Максим Мухин",null,null,null,null,null,null,null,null,null,null,null,null,null,null,null,null,null,null,1,0,2]
[8,"Иван Обляков",null,null,null,null,null,null,null,null,null,null,null,null,null,null,null,null,null,null,1,0,2,null," "]
[9,"Хесус Медина",null,null,null,null,null,null,null,null,null,null,null,null,null,null,null,null,null,null,1,0,2]
[10,"Хорхе Карраскаль",null,null,null,null,null,null,null,null,null,null,null,null,null,null,null,null,null,null,1,0,2]
[11,"Федор Чалов",null,null,null,null,null,null,null,null,null,null,null,null,null,null,null,null,null,null,1,0,2,null," "]
[12,"Саша Зделар",null,null,null,null,null,null,null,null,null,null,null,null,null,null,null,null,null,null,1,0,2]
[13,"Никита Ермаков",null,null,null,null,null,null,null,null,null,null,null,null,null,null,null,null,null,null,1,0,2]
[14,"Виктор Мендес",null,null,null,null,null,null,null,null,null,null,null,null,null,null,null,null,null,null,1,0,2]
[15,"Адольфо Гайч",null,null,null,null,null,null,null,null,null,null,null,null,null,null,null,null,null,null,1,0,2]
[16,null,null,null,null,null,null,null,null,null,null,null,null,null,null,null,null,null,null,null,1,0,2]
[null,null,null,null,null,null,null,null,null,null,null,null,null,null,null,null,null,null,null,null,0,0,0]